lending/lending_fUSD_20250418
["ID","MTS","AMOUNT","RATE_DAILY","PERIOD"]
[358352098,1744977451238,-262.32318628,0.0007365,56]
[358352099,1744977451266,-150.0,0.00073678,60]
[358352100,1744977451293,-150.0,0.00073757,60]
[358352101,1744977451321,-150.0,0.00073792,60]
[358352102,1744977451348,-150.0,0.00073846,60]
[358352103,1744977451375,-346.46177549,0.00073866,37]
[358352104,1744977451402,-150.0,0.00073915,60]
[358352105,1744977451428,-150.0,0.00073935,60]
[358352106,1744977451454,-300.0,0.00073971,60]
[358352107,1744977451479,-1735.49,0.00073972,120]
[358352108,1744977451504,-500.0,0.00073972,14]
[358352109,1744977451528,-500.0,0.00073972,120]
[358352110,1744977451553,-500.0,0.00073972,120]
[358352111,1744977451578,-600.0,0.00073972,120]
[358352112,1744977451603,-500.0,0.00073972,120]
[358352113,1744977451627,-500.0,0.00073972,120]
[358352114,1744977451652,-500.0,0.00073972,120]
[358352115,1744977451676,-151.9705708,0.00073972,120]
[358352116,1744977451701,-546.52947968,0.00073972,120]
[358352117,1744977451728,-500.0,0.00073972,120]
[358352118,1744977451754,-500.0,0.00073972,120]
[358352119,1744977451778,-343.01327034,0.00073972,120]
[358352120,1744977451802,-500.0,0.00073972,120]
[358352121,1744977451826,-500.0,0.00073972,120]
[358352122,1744977451855,-500.0,0.00073972,120]
[358352123,1744977451880,-500.0,0.00073972,120]
[358352124,1744977452038,-500.0,0.00073972,120]
[358352125,1744977452064,-500.0,0.00073972,120]
[358352126,1744977452089,-748.4,0.00073972,120]
[358352127,1744977452114,-655.13,0.00073972,120]
[358352128,1744977452141,-539.80120261,0.00073972,120]
[358352129,1744977452167,-453.4838587,0.00073972,120]
[358352130,1744977452193,-500.0,0.00073972,120]
[358352131,1744977452218,-500.0,0.00073972,120]
[358352132,1744977452243,-500.0,0.00073972,120]
[358352133,1744977452269,-522.03404305,0.00073972,120]
[358352134,1744977452294,-500.0,0.00073972,120]
[358352135,1744977452319,-500.0,0.00073972,120]
[358352136,1744977452344,-494.0,0.00073972,120]
[358352137,1744977452370,-505.30124377,0.00073972,120]
[358352138,1744977452395,-500.0,0.00073972,120]
[358352139,1744977452420,-500.0,0.00073972,120]
[358352140,1744977452445,-500.0,0.00073972,120]
[358352141,1744977452469,-500.0,0.00073972,120]
[358352142,1744977452494,-500.0,0.00073972,120]
[358352143,1744977452518,-519.66494476,0.00073972,120]
[358352144,1744977452543,-423.57515015,0.00073972,120]
[358352145,1744977452567,-500.0,0.00073972,120]
[358352146,1744977452591,-500.0,0.00073972,120]
[358352147,1744977452615,-500.0,0.00073972,120]
[358352148,1744977452640,-300.02603899,0.00073972,120]
[358352149,1744977452666,-500.0,0.00073972,120]
[358352150,1744977452692,-500.0,0.00073972,120]
[358352151,1744977452718,-557.02105595,0.00073972,120]
[358352152,1744977452744,-500.0,0.00073972,120]
[358352153,1744977452769,-500.0,0.00073972,120]
[358352154,1744977452794,-500.0,0.00073972,120]
[358352155,1744977452819,-500.0,0.00073972,120]
[358352156,1744977452845,-312.57641283,0.00073972,120]
[358352157,1744977452873,-583.37789881,0.00073972,120]
[358352158,1744977452899,-500.0,0.00073972,120]
[358352159,1744977452926,-500.0,0.00073972,120]
[358352160,1744977452952,-503.15,0.00073972,120]
[358352161,1744977452978,-500.0,0.00073972,120]
[358352162,1744977453003,-500.0,0.00073972,120]
[358352163,1744977453031,-498.90559602,0.00073972,120]
[358352164,1744977453058,-500.0,0.00073972,120]
[358352165,1744977453084,-500.0,0.00073972,120]
[358352166,1744977453111,-500.0,0.00073972,120]
[358352167,1744977453138,-500.0,0.00073972,120]
[358352168,1744977453165,-2000.0,0.00073972,120]
[358352169,1744977453191,-500.0,0.00073972,120]
[358352170,1744977453217,-562.22107247,0.00073972,120]
[358352171,1744977453245,-500.0,0.00073972,120]
[358352172,1744977453270,-515.19281424,0.00073972,120]
[358352173,1744977453298,-500.0,0.00073972,120]
[358352174,1744977453324,-356.92511866,0.00073972,120]
[358352175,1744977453350,-500.0,0.00073972,120]
[358352176,1744977453377,-500.0,0.00073972,120]
[358352177,1744977453402,-523.82655043,0.00073972,120]
[358352178,1744977453434,-500.0,0.00073972,120]
[358352179,1744977453461,-500.0,0.00073972,120]
[358352180,1744977453488,-290.95790471,0.00073972,120]
[358352181,1744977453514,-500.0,0.00073972,120]
[358352182,1744977453540,-500.0,0.00073972,120]
[358352183,1744977453566,-534.01283032,0.00073972,120]
[358352184,1744977453592,-500.0,0.00073972,120]
[358352185,1744977453618,-183.09539843,0.00073972,120]
[358352186,1744977453645,-562.25484715,0.00073972,120]
[358352187,1744977453670,-500.0,0.00073972,120]
[358352188,1744977453696,-500.0,0.00073972,120]
[358352189,1744977453722,-243.41530583,0.00073972,120]
[358352190,1744977453747,-502.68931434,0.00073972,120]
[358352191,1744977453773,-500.0,0.00073972,120]
[358352192,1744977453799,-531.48956749,0.00073972,120]
[358352193,1744977453824,-535.62346268,0.00073972,120]
[358352194,1744977453853,-500.0,0.00073972,120]
[358352195,1744977453882,-553.87978929,0.00073972,120]
[358352196,1744977453911,-500.0,0.00073972,120]
[358352197,1744977453939,-500.0,0.00073972,120]
[358352198,1744977453967,-381.24332724,0.00073972,120]
[358352199,1744977453996,-1000.0,0.00073972,120]
[358352200,1744977454024,-500.0,0.00073972,120]
[358352201,1744977454052,-245.91092386,0.00073972,120]
[358352202,1744977454082,-512.63592137,0.00073972,120]
[358352203,1744977454110,-458.0984484,0.00073972,120]
[358352204,1744977454138,-500.0,0.00073972,120]
[358352205,1744977454166,-500.0,0.00073972,120]
[358352206,1744977454195,-1500.0,0.00073972,120]
[358352207,1744977454224,-500.0,0.00073972,120]
[358352208,1744977454253,-8227.57,0.00073972,120]
[358352209,1744977454282,-500.0,0.00073972,120]
[358352210,1744977454307,-436.02804454,0.00073972,120]
[358352211,1744977454333,-400.03276811,0.00073972,120]
[358352212,1744977454360,-500.0,0.00073972,120]
[358352213,1744977454385,-186.37223064,0.00073972,120]
[358352214,1744977454411,-500.0,0.00073972,120]
[358352215,1744977454436,-340.43494139,0.00073972,120]
[358352216,1744977454462,-520.42581854,0.00073972,120]
[358352217,1744977454487,-509.256568,0.00073972,120]
[358352218,1744977454514,-454.05352283,0.00073972,120]
[358352219,1744977454541,-511.60142518,0.00073972,120]
[358352220,1744977454737,-500.0,0.00073972,120]
[358352221,1744977454765,-500.0,0.00073972,120]
[358352222,1744977454792,-508.77744607,0.00073972,120]
[358352223,1744977454818,-512.79380391,0.00073972,120]
[358352224,1744977454844,-500.0,0.00073972,120]
[358352225,1744977454875,-955.26,0.00073972,120]
[358352226,1744977454902,-500.0,0.00073972,120]
[358352227,1744977454928,-949.38,0.00073972,120]
[358352228,1744977454958,-309.22157431,0.00073972,120]
[358352229,1744977454986,-500.0,0.00073972,120]
[358352230,1744977455013,-500.0,0.00073972,120]
[358352231,1744977455039,-569.53310261,0.00073972,120]
[358352232,1744977455067,-523.42273495,0.00073972,120]
[358352233,1744977455093,-512.00450812,0.00073972,120]
[358352234,1744977455118,-831.5,0.00073972,120]
[358352235,1744977455143,-500.0,0.00073972,120]
[358352236,1744977455169,-500.0,0.00073972,120]
[358352237,1744977455196,-500.0,0.00073972,120]
[358352238,1744977455221,-510.55315767,0.00073972,120]
[358352239,1744977455247,-507.28683466,0.00073972,120]
[358352240,1744977455273,-500.0,0.00073972,120]
[358352241,1744977455298,-919.17,0.00073972,120]
[358352242,1744977455323,-506.83976936,0.00073972,120]
[358352243,1744977455349,-370.6255442,0.00073972,120]
[358352244,1744977455375,-440.85085116,0.00073972,120]
[358352245,1744977455399,-313.84800832,0.00073972,120]
[358352246,1744977455425,-500.0,0.00073972,120]
[358352247,1744977455451,-553.22098977,0.00073972,120]
[358352248,1744977455478,-580.97251579,0.00073972,120]
[358352249,1744977455505,-500.0,0.00073972,120]
[358352250,1744977455530,-500.0,0.00073972,120]
[358352251,1744977455556,-505.71037448,0.00073972,120]
[358352252,1744977455581,-509.11603999,0.00073972,120]
[358352253,1744977455607,-1875.69,0.00073972,120]
[358352254,1744977455632,-178.77574684,0.00073972,120]
[358352255,1744977455658,-500.0,0.00073972,120]
[358352256,1744977455683,-500.0,0.00073972,120]
[358352257,1744977455709,-500.0,0.00073972,120]
[358352258,1744977455737,-500.0,0.00073972,120]
[358352259,1744977455764,-500.0,0.00073972,120]
[358352260,1744977455795,-500.0,0.00073972,120]
[358352261,1744977455821,-551.20852136,0.00073972,120]
[358352262,1744977455852,-500.0,0.00073972,120]
[358352263,1744977455878,-538.50498619,0.00073972,120]
[358352264,1744977455905,-508.12997574,0.00073972,30]
[358352265,1744977455932,-337.93891359,0.00073972,120]
[358352266,1744977455957,-500.0,0.00073972,120]
[358352267,1744977455983,-500.0,0.00073972,120]
[358352268,1744977456008,-500.0,0.00073972,120]
[358352269,1744977456036,-534.70470127,0.00073972,120]
[358352270,1744977456061,-535.16691728,0.00073972,120]
[358352271,1744977456087,-538.75070345,0.00073972,120]
[358352272,1744977456112,-290.77970018,0.00073972,120]
[358352273,1744977456137,-500.0,0.00073972,120]
[358352274,1744977456162,-546.23236872,0.00073972,120]
[358352275,1744977456187,-520.3677428,0.00073972,120]
[358352276,1744977456212,-513.40655878,0.00073972,120]
[358352277,1744977456237,-517.19907152,0.00073972,120]
[358352278,1744977456263,-508.72318263,0.00073972,120]
[358352279,1744977456287,-500.0,0.00073972,120]
[358352280,1744977456312,-500.0,0.00073972,120]
[358352281,1744977456338,-500.0,0.00073972,120]
[358352282,1744977456363,-1456.18,0.00073972,120]
[358352283,1744977456389,-641.16,0.00073972,120]
[358352284,1744977456415,-585.59,0.00073972,120]
[358352285,1744977456440,-500.0,0.00073972,120]
[358352286,1744977456466,-500.0,0.00073972,120]
[358352287,1744977456491,-500.0,0.00073972,120]
[358352288,1744977456516,-549.34,0.00073972,120]
[358352289,1744977456542,-500.0,0.00073972,120]
[358352290,1744977456566,-515.68437691,0.00073972,120]
[358352291,1744977456592,-500.0,0.00073972,120]
[358352292,1744977456617,-500.0,0.00073972,120]
[358352293,1744977456643,-500.0,0.00073972,120]
[358352294,1744977456673,-500.0,0.00073972,120]
[358352295,1744977456700,-500.0,0.00073972,120]
[358352296,1744977456728,-500.0,0.00073972,120]
[358352297,1744977456755,-577.91701868,0.00073972,120]
[358352298,1744977456784,-350.0,0.00073972,120]
[358352299,1744977456809,-500.0,0.00073972,120]
[358352300,1744977456835,-500.0,0.00073972,120]
[358352301,1744977456862,-8730.34,0.00073972,120]
[358352302,1744977456887,-500.0,0.00073972,120]
[358352303,1744977456913,-500.00070234,0.00073972,120]
[358352304,1744977456938,-334.4938371,0.00073972,120]
[358352305,1744977456964,-242.92387036,0.00073972,120]
[358352306,1744977456991,-500.0,0.00073972,120]
[358352307,1744977457017,-500.0,0.00073972,120]
[358352308,1744977457042,-500.0,0.00073972,120]
[358352309,1744977457068,-500.0,0.00073972,120]
[358352310,1744977457094,-896.03,0.00073972,120]
[358352311,1744977457120,-500.0,0.00073972,120]
[358352312,1744977457146,-898.64,0.00073972,120]
[358352313,1744977457170,-500.0,0.00073972,120]
[358352314,1744977457196,-500.0,0.00073972,120]
[358352315,1744977457223,-521.64515425,0.00073972,120]
[358352316,1744977457378,-500.0,0.00073972,120]
[358352317,1744977457405,-500.0,0.00073972,120]
[358352318,1744977457431,-500.0,0.00073972,120]
[358352319,1744977457456,-500.0,0.00073972,120]
[358352320,1744977457482,-500.0,0.00073972,120]
[358352321,1744977457507,-500.0,0.00073972,120]
[358352322,1744977457534,-500.0,0.00073972,120]
[358352323,1744977457559,-2512.10987959,0.00074,120]
[358352324,1744977457585,-5006.71948756,0.00074,120]
[358352325,1744977457610,-7116.07412405,0.00074,40]
[358352326,1744977457638,-150.0,0.00074003,60]
[358352327,1744977457665,-150.0,0.00074004,60]
[358352328,1744977457692,-150.0,0.00074017,60]
[358352329,1744977457719,-201.72319689,0.0007402,60]
[358352330,1744977457746,-150.0,0.00074036,60]
[358352331,1744977457773,-150.0,0.00074036,60]
[358352332,1744977457800,-150.0,0.00074072,60]
[358352333,1744977457826,-150.0,0.00074098,60]
[358352334,1744977457855,-88861.92,0.000742,60]
[358352335,1744977457888,-220.915578,0.000742,120]
[358352336,1744977457922,-151.0,0.000742,120]
[358352337,1744977457952,-151.0,0.000742,120]
[358352338,1744977457980,-151.0,0.000742,120]
[358352339,1744977458007,-342.800957,0.000742,120]
[358352340,1744977458034,-151.0,0.000742,120]
[358352341,1744977458061,-342.800957,0.000742,120]
[358352342,1744977458088,-151.0,0.000742,120]
[358352343,1744977458116,-151.0,0.000742,120]
[358352344,1744977458145,-150.0,0.00074248,60]
[358352345,1744977458173,-161.34405,0.000743,120]
[358352346,1744977458201,-150.0,0.00074307,60]
[358352347,1744977458229,-150.0,0.00074313,60]
[358352348,1744977458257,-150.0,0.00074334,60]
[358352349,1744977458284,-150.0,0.00074338,60]
[358352350,1744977458312,-150.0,0.00074342,60]
[358352351,1744977458339,-150.0,0.00074342,60]
[358352352,1744977458367,-150.0,0.00074348,60]
[358352353,1744977458394,-150.0,0.00074368,60]
[358352354,1744977458421,-279.47839207,0.0007437,60]
[358352355,1744977458448,-150.0,0.00074398,60]
[358352356,1744977458476,-346.46177549,0.00074417,38]
[358352357,1744977458508,-150.0,0.0007442,60]
[358352358,1744977458536,-150.0,0.00074426,60]
[358352359,1744977458563,-150.0,0.00074431,60]
[358352360,1744977458591,-150.0,0.00074451,60]
[358352361,1744977458620,-150.0,0.0007446,60]
[358352362,1744977458648,-150.0,0.0007446,60]
[358352363,1744977458675,-2049.0,0.00074463,120]
[358352364,1744977458702,-1329.0,0.00074463,120]
[358352365,1744977458729,-1440.0,0.00074463,120]
[358352366,1744977458755,-1281.0,0.00074463,120]
[358352367,1744977458781,-152.0,0.00074463,120]
[358352368,1744977458809,-269.68579818,0.00074472,60]
[358352369,1744977458838,-150.0,0.00074484,60]
[358352370,1744977458869,-150.0,0.00074504,60]
[358352371,1744977458897,-150.0,0.00074521,60]
[358352372,1744977458929,-150.0,0.00074526,60]
[358352373,1744977458958,-150.0,0.00074533,60]
[358352374,1744977458986,-1000.0,0.00074547,120]
[358352375,1744977459014,-150.0,0.00074558,60]
[358352376,1744977459043,-150.0,0.00074565,60]
[358352377,1744977459071,-150.0,0.00074568,60]
[358352378,1744977459097,-2590.52,0.000746,60]
[358352379,1744977459128,-153.16,0.000746,72]
[358352380,1744977459160,-153.16,0.000746,72]
[358352381,1744977459191,-153.16,0.000746,72]
[358352382,1744977459224,-153.16,0.000746,72]
[358352383,1744977459255,-153.16,0.000746,72]
[358352384,1744977459286,-153.16,0.000746,72]
[358352385,1744977459317,-153.16,0.000746,72]
[358352386,1744977459351,-153.16,0.000746,72]
[358352387,1744977459382,-153.16,0.000746,72]
[358352388,1744977459413,-153.16,0.000746,72]
[358352389,1744977459440,-150.0,0.00074639,60]
[358352390,1744977459467,-150.0,0.00074756,60]
[358352391,1744977459495,-150.0,0.00074771,60]
[358352392,1744977459521,-150.0,0.00074791,60]
[358352393,1744977459547,-153.42314445,0.0007481,90]
[358352394,1744977459574,-150.0,0.00074821,60]
[358352395,1744977459606,-150.0,0.00074824,60]
[358352396,1744977459633,-150.0,0.00074841,60]
[358352397,1744977459662,-150.0,0.0007487,60]
[358352398,1744977459689,-150.0,0.00074887,60]
[358352399,1744977459715,-1534.45934165,0.000749,120]
[358352400,1744977459740,-352.15678337,0.000749,120]
[358352401,1744977459768,-200.0,0.000749,27]
[358352402,1744977459794,-156.73245421,0.000749,58]
[358352403,1744977459821,-262.32318628,0.000749,58]
[358352404,1744977459848,-174.09543382,0.000749,28]
[358352405,1744977459877,-2223.57774438,0.000749,30]
[358352406,1744977459906,-150.0,0.0007495,60]
[358352407,1744977459938,-346.46177549,0.00074969,38]
[358352408,1744977459968,-150.0,0.00074969,60]
[358352409,1744977459995,-1026.0344484,0.0007497,120]
[358352410,1744977460022,-150.0,0.00074973,15]
[358352411,1744977460201,-168.02529908,0.0007498,60]
[358352412,1744977460229,-150.0,0.00074982,60]
[358352413,1744977460255,-152.09289653,0.00074999,120]
[358352414,1744977460280,-322.44187203,0.00074999,60]
[358352415,1744977460305,-300.0,0.00074999,60]
[358352416,1744977460330,-2000.0,0.00074999,120]
[358352417,1744977460356,-500.0,0.00074999,90]
[358352418,1744977460385,-223745.78447546,0.00075,120]
[358352419,1744977460411,-238.62442314,0.00075,120]
[358352420,1744977460440,-244772.23,0.00075,120]
[358352421,1744977460466,-350.0,0.00075,120]
[358352422,1744977460495,-1000000.0,0.00075,120]
[358352423,1744977460525,-517003.67511997,0.00075,120]
[358352424,1744977473320,-194.474193,0.0007,120]
[358352425,1744977473346,-152.067872,0.0007,120]
[358352426,1744977473375,-487.06101953,0.00073972,120]
[358352427,1744977473400,-500.0,0.00073972,120]
[358352428,1744977473426,-500.0,0.00073972,120]
[358352429,1744977473452,-500.0,0.00073972,120]
[358352430,1744977473482,-612.43129338,0.00073972,14]
[358352431,1744977473510,-157.0,0.000742,60]
[358352432,1744977473540,-482996.32488003,0.00075,120]
[358352433,1744977473570,-1000000.0,0.00075,120]
[358352434,1744977473596,-187.74593584,0.00075,30]
[358352435,1744977473621,-25549.00247844,0.00075,30]
[358352436,1744977473646,-151.0,0.00075,120]
[358352437,1744977473670,-151.0,0.00075,120]
[358352438,1744977473696,-151.0,0.00075,120]
[358352439,1744977473721,-151.0,0.00075,120]
[358352440,1744977473748,-151.0,0.00075,120]
[358352441,1744977473774,-151.0,0.00075,120]
[358352442,1744977473800,-342.800957,0.00075,120]
[358352443,1744977473825,-342.800957,0.00075,120]
[358352444,1744977473851,-342.800957,0.00075,120]
[358352445,1744977473880,-151.0,0.00075,120]
[358352446,1744977473907,-256.223274,0.00075,120]
[358352447,1744977473933,-342.800957,0.00075,120]
[358352448,1744977473963,-342.800957,0.00075,120]
[358352449,1744977473989,-342.800951,0.00075,120]
[358352450,1744977474016,-151.0,0.00075,120]
[358352451,1744977474042,-254.974492,0.00075,120]
[358352452,1744977474068,-151.0,0.00075,120]
[358352453,1744977474099,-151.0,0.00075,120]
[358352454,1744977474125,-151.0,0.00075,120]
[358352455,1744977474151,-2590.52,0.000754,60]
[358352456,1744977474176,-1002.38997492,0.00075452,15]
[358352457,1744977474201,-738.19731123,0.00075452,15]
[358352458,1744977474227,-1001.95706731,0.00075452,14]
[358352459,1744977474253,-1000.0,0.00075452,15]
[358352460,1744977474279,-1000.0,0.00075452,15]
[358352461,1744977474305,-1000.0,0.00075452,14]
[358352462,1744977474514,-2447.09536119,0.00075503,120]
[358352463,1744977474542,-2590.52,0.000756,60]
[358352464,1744977474569,-527.28,0.00075711,120]
[358352465,1744977474601,-158.71,0.0007584,120]
[358352466,1744977474627,-21387.0,0.00076,120]
[358352467,1744977474653,-1500.0,0.00076,30]
[358352468,1744977474680,-88861.92,0.000764,60]
[358352469,1744977474706,-352.15678337,0.00076567,120]
[358352470,1744977474731,-536.0,0.00076571,120]
[358352471,1744977474758,-536.0,0.00076571,120]
[358352472,1744977474784,-1756.10000099,0.000766,120]
[358352473,1744977474814,-361.92,0.00076635,120]
[358352474,1744977474840,-1000.0,0.0007667,120]
[358352475,1744977474867,-200.0,0.000767,120]
[358352476,1744977474892,-249.35123978,0.00076711,120]
[358352477,1744977474919,-1735.49,0.00076712,120]
[358352478,1744977474947,-500.0,0.00076712,120]
[358352479,1744977474974,-601.29673482,0.00076712,120]
[358352480,1744977475002,-500.0,0.00076712,120]
[358352481,1744977475029,-500.0,0.00076712,120]
[358352482,1744977475055,-500.0,0.00076712,120]
[358352483,1744977475081,-500.0,0.00076712,120]
[358352484,1744977475108,-500.0,0.00076712,120]
[358352485,1744977475134,-500.0,0.00076712,120]
[358352486,1744977475160,-500.0,0.00076712,120]
[358352487,1744977475187,-500.0,0.00076712,120]
[358352488,1744977475214,-500.0,0.00076712,120]
[358352489,1744977475241,-748.4,0.00076712,120]
[358352490,1744977475267,-655.13,0.00076712,120]
[358352491,1744977475293,-500.0,0.00076712,120]
[358352492,1744977475318,-596.20281856,0.00076712,120]
[358352493,1744977475344,-500.0,0.00076712,120]
[358352494,1744977475371,-186.81918855,0.00076712,120]
[358352495,1744977475397,-500.0,0.00076712,120]
[358352496,1744977475422,-500.0,0.00076712,120]
[358352497,1744977475449,-500.0,0.00076712,120]
[358352498,1744977475476,-500.0,0.00076712,120]
[358352499,1744977475504,-546.26221401,0.00076712,120]
[358352500,1744977475530,-500.0,0.00076712,120]
[358352501,1744977475556,-534.64244176,0.00076712,120]
[358352502,1744977475582,-530.51653043,0.00076712,120]
[358352503,1744977475610,-536.02501545,0.00076712,120]
[358352504,1744977475635,-518.3632483,0.00076712,120]
[358352505,1744977475661,-500.0,0.00076712,120]
[358352506,1744977475686,-500.0,0.00076712,120]
[358352507,1744977475712,-503.15,0.00076712,120]
[358352508,1744977475739,-627.71944344,0.00076712,120]
[358352509,1744977475765,-507.03726267,0.00076712,120]
[358352510,1744977475790,-542.08292134,0.00076712,120]
[358352511,1744977475815,-500.0,0.00076712,120]
[358352512,1744977475841,-2000.0,0.00076712,120]
[358352513,1744977475870,-500.0,0.00076712,120]
[358352514,1744977475898,-546.18220208,0.00076712,120]
[358352515,1744977475927,-500.0,0.00076712,120]
[358352516,1744977475954,-500.0,0.00076712,120]
[358352517,1744977475980,-500.0,0.00076712,120]
[358352518,1744977476006,-445.0963017,0.00076712,120]
[358352519,1744977476033,-448.60101607,0.00076712,120]
[358352520,1744977476058,-500.0,0.00076712,120]
[358352521,1744977476084,-500.0,0.00076712,120]
[358352522,1744977476110,-500.0,0.00076712,120]
[358352523,1744977476136,-1000.0,0.00076712,120]
[358352524,1744977476161,-1530.42846747,0.00076712,120]
[358352525,1744977476186,-8227.57,0.00076712,120]
[358352526,1744977476214,-500.0,0.00076712,120]
[358352527,1744977476240,-955.26,0.00076712,120]
[358352528,1744977476265,-500.0,0.00076712,120]
[358352529,1744977476291,-949.38,0.00076712,120]
[358352530,1744977476316,-500.0,0.00076712,120]
[358352531,1744977476342,-831.5,0.00076712,120]
[358352532,1744977476368,-500.0,0.00076712,120]
[358352533,1744977476397,-500.0,0.00076712,120]
[358352534,1744977476424,-919.17,0.00076712,120]
[358352535,1744977476450,-500.0,0.00076712,120]
[358352536,1744977476475,-1875.69,0.00076712,120]
[358352537,1744977476501,-500.0,0.00076712,120]
[358352538,1744977476527,-500.0,0.00076712,120]
[358352539,1744977476554,-500.0,0.00076712,120]
[358352540,1744977476581,-500.0,0.00076712,120]
[358352541,1744977476608,-198.54295303,0.00076712,120]
[358352542,1744977476634,-1456.18,0.00076712,120]
[358352543,1744977476659,-641.16,0.00076712,120]
[358352544,1744977476686,-585.59,0.00076712,120]
[358352545,1744977476712,-500.0,0.00076712,120]
[358352546,1744977476739,-549.34,0.00076712,120]
[358352547,1744977476764,-500.0,0.00076712,120]
[358352548,1744977476793,-500.0,0.00076712,120]
[358352549,1744977476819,-350.0,0.00076712,120]
[358352550,1744977476845,-500.0,0.00076712,120]
[358352551,1744977476873,-500.0,0.00076712,120]
[358352552,1744977476899,-8730.34,0.00076712,120]
[358352553,1744977476927,-500.0,0.00076712,120]
[358352554,1744977476955,-500.0,0.00076712,120]
[358352555,1744977476979,-500.0,0.00076712,120]
[358352556,1744977477005,-500.0,0.00076712,120]
[358352557,1744977477173,-500.0,0.00076712,120]
[358352558,1744977477201,-896.03,0.00076712,120]
[358352559,1744977477227,-500.0,0.00076712,120]
[358352560,1744977477254,-898.64,0.00076712,120]
[358352561,1744977477279,-500.0,0.00076712,120]
[358352562,1744977477304,-500.0,0.00076712,120]
[358352563,1744977477331,-500.0,0.00076712,120]
[358352564,1744977477357,-454.8359678,0.00076712,120]
[358352565,1744977477384,-603.4057803,0.00076712,120]
[358352566,1744977477411,-500.0,0.00076712,120]
[358352567,1744977477437,-500.0,0.00076712,120]
[358352568,1744977477463,-500.0,0.00076712,120]
[358352569,1744977477490,-500.0,0.00076712,120]
[358352570,1744977477515,-500.0,0.00076712,120]
[358352571,1744977477541,-521.71875914,0.00076712,120]
[358352572,1744977477568,-161.34405,0.000768,120]
[358352573,1744977477596,-2590.52,0.000769,60]
[358352574,1744977477623,-500.0,0.00077,120]
[358352575,1744977477650,-2049.0,0.00077463,120]
[358352576,1744977477679,-1329.0,0.00077463,120]
[358352577,1744977477704,-1281.0,0.00077463,120]
[358352578,1744977477731,-200.0,0.000777,120]
[358352579,1744977477758,-273.50908769,0.00077712,15]
[358352580,1744977477785,-200.0,0.000779,28]
[358352581,1744977477812,-1000.0,0.00077998,120]
[358352582,1744977477838,-300.0,0.00077999,60]
[358352583,1744977477867,-500.0,0.00077999,90]
[358352584,1744977477893,-500.0,0.00078,120]
[358352585,1744977477923,-1000000.0,0.00078,120]
[358352586,1744977477951,-1040.87367098,0.00078,120]
[358352587,1744977477977,-29128.22443413,0.00078,120]
[358352588,1744977478004,-999.0,0.00078018,120]
[358352589,1744977478033,-352.15678337,0.00078233,120]
[358352590,1744977478062,-2590.52,0.000784,60]
[358352591,1744977478087,-910.75742454,0.00078406,120]
[358352592,1744977478113,-500.0,0.000785,120]
[358352593,1744977478141,-2013.18218254,0.0007862,120]
[358352594,1744977478168,-2013.18218254,0.00078625,120]
[358352595,1744977478194,-2013.18218254,0.00078628,120]
[358352596,1744977478220,-200.0,0.000787,120]
[358352597,1744977478247,-88861.92,0.000787,60]